bitfinex/quotes_ETHUSD_20250730
["timestamp","ask_amount","ask_price","bid_price","bid_amount"]
[1753878749860,11.51285614,3774.2,3774.1,0.04]
[1753878750969,7.01056812,3774.2,3774.1,0.04]
[1753878751383,4.361,3774.2,3774.1,0.7949]
[1753878751881,4.361,3774.2,3774.1,1.266]
[1753878752041,4.361,3774.2,3774.1,1.7331]
[1753878752240,2.64914281,3774.9,3774.2,2.64955227]
[1753878752464,0.14829926,3774.8,3774.4,2.64938232]
[1753878752668,2.64948707,3774.4,3774.1,1.266]
[1753878752868,4.36,3774.3,3774.1,1.266]
[1753878753064,7.00956812,3774.2,3774.1,0.04]
[1753878753323,4.36,3774.2,3774.1,0.04]
[1753878753463,7.00956812,3774.2,3774.1,0.04]
[1753878753665,4.36,3774.2,3774.1,0.5111]
[1753878754409,4.36,3774.2,3774.1,0.04]
[1753878755868,0.4508,3774.6,3774.1,0.04]
[1753878756063,4.36,3774.5,3774.2,0.4711]
[1753878756409,4.36,3774.5,3774.3,0.4711]
[1753878756589,3.0,3774.5,3774.1,0.04]
[1753878756789,4.359,3774.4,3774.1,0.5111]
[1753878756996,4.359,3774.4,3774.2,0.4711]
[1753878757289,3.59656588,3775.0,3774.3,3.12054961]
[1753878757290,2.64905258,3775.0,3774.3,3.12054961]
[1753878757489,2.648925,3775.2,3774.3,3.12054961]
[1753878757490,0.14808155,3774.9,3774.4,2.64941872]
[1753878757681,0.14808155,3774.8,3774.5,3.12044063]
[1753878757877,4.359,3774.7,3774.5,2.64934063]
[1753878758066,4.359,3774.7,3774.6,0.4711]
[1753878758508,2.64880272,3775.3,3774.6,0.4711]
[1753878758803,7.50704526,3775.2,3774.6,3.58744251]
[1753878759108,4.359,3775.1,3774.9,0.7922]
[1753878759327,4.359,3775.1,3774.6,0.7922]
[1753878759603,4.359,3775.1,3774.5,2.64935028]
[1753878759765,7.00794486,3775.1,3774.7,0.4711]
[1753878759974,2.64880272,3775.3,3774.7,0.4711]
[1753878760218,4.50603015,3775.2,3774.7,0.4711]
[1753878760389,4.358,3775.2,3774.8,1.2633]
[1753878760595,4.358,3775.2,3774.8,0.7922]
[1753878760797,7.00687243,3775.2,3774.8,0.7922]
[1753878761133,1.64818724,3775.1,3774.4,0.7895]
[1753878761417,2.64933289,3774.6,3774.1,0.869454]
[1753878761620,4.60467841,3774.5,3774.1,0.0933908]
[1753878761777,4.60467841,3774.4,3774.1,2.74296379]
[1753878761979,4.60467841,3774.3,3774.1,0.0933908]
[1753878762229,0.24667841,3774.2,3774.1,0.0933908]
[1753878762384,0.24667841,3774.2,3773.7,0.001]
[1753878762580,0.24667841,3774.1,3773.7,0.001]
[1753878762777,2.64956812,3774.2,3773.7,0.001]
[1753878762778,4.60467841,3774.0,3773.7,0.001]
[1753878763103,0.24667841,3773.9,3773.7,0.001]
[1753878763417,0.24667841,3773.8,3773.7,0.001]
[1753878763924,0.74337841,3773.8,3773.7,0.001]
[1753878764095,0.24667841,3773.8,3773.7,0.001]
[1753878765333,3.39322736,3773.8,3773.7,0.001]
[1753878765632,4.92919648,3773.8,3773.7,0.001]
[1753878766002,5.69609648,3773.8,3773.7,0.001]
[1753878766205,8.69609648,3773.8,3773.7,0.001]
[1753878766415,8.69620683,3773.8,3773.7,0.001]
[1753878766819,8.89029108,3773.8,3773.7,0.001]
[1753878767221,9.03837985,3773.8,3773.7,0.001]
[1753878767427,13.24629108,3773.8,3773.7,0.001]
[1753878767633,2.65034621,3773.1,3772.4,3.11792098]
[1753878767824,4.60278876,3773.0,3772.4,3.79629922]
[1753878768023,4.60278876,3772.9,3772.7,2.65060491]
[1753878768240,0.24678876,3772.8,3772.4,1.14547824]
[1753878768545,0.24678876,3772.7,3772.2,0.5438]
[1753878768707,0.24678876,3772.6,3772.3,2.65090263]
[1753878768907,4.60278876,3772.5,3772.2,0.5438]
[1753878769223,0.24678876,3772.4,3772.2,0.5438]
[1753878769428,0.24678876,3772.3,3772.2,0.5438]
[1753878769640,0.24678876,3772.3,3771.9,0.5438]
[1753878769951,4.60278876,3772.2,3771.9,0.5438]
[1753878770103,4.60278876,3772.1,3771.5,2.65145656]
[1753878770311,0.4967,3772.3,3771.2,0.5438]
[1753878770312,4.60278876,3772.0,3771.2,0.5438]
[1753878770619,4.60178876,3771.9,3771.8,2.65125404]
[1753878770950,4.60178876,3771.9,3771.8,3.12235404]
[1753878770951,0.24678876,3771.9,3771.8,3.12235404]
[1753878771198,4.60178876,3771.9,3771.8,3.12235404]
[1753878771450,4.60178876,3771.9,3771.8,3.3306015]
[1753878771618,4.60178876,3771.9,3771.8,4.13325404]
[1753878771825,4.60178876,3771.9,3771.8,0.5438]
[1753878772123,4.60204671,3771.9,3771.8,0.5438]
[1753878772324,4.60204671,3771.9,3771.3,0.5438]
[1753878772648,0.24704671,3771.9,3771.2,2.65167585]
[1753878772854,4.355,3771.8,3771.2,0.26916759]
[1753878773150,4.355,3771.7,3771.4,0.5438]
[1753878773316,4.355,3771.6,3771.5,3.58966493]
[1753878773515,4.355,3771.6,3771.5,0.9382]
[1753878773717,4.355,3771.6,3771.5,3.58964997]
[1753878773911,4.6023045,3771.6,3771.5,3.66052784]
[1753878774652,0.2473045,3771.6,3771.5,4.63234657]
[1753878774810,0.2473045,3771.6,3771.5,4.08234657]
[1753878775762,0.2473045,3771.6,3771.5,3.61124657]
[1753878775962,0.2473045,3771.6,3771.5,4.08234657]
[1753878776364,0.2473045,3771.6,3771.5,3.61124657]
[1753878776365,4.6023045,3771.6,3771.5,3.61124657]
[1753878776564,4.6023045,3771.6,3771.5,3.43867456]
[1753878776966,0.2473045,3771.6,3771.5,3.43867456]
[1753878777153,4.6013045,3771.6,3771.5,3.43867456]
[1753878777355,4.6013045,3771.6,3771.5,0.5438]
[1753878777557,4.6013045,3771.6,3771.5,3.19526493]
[1753878777772,4.6013045,3771.6,3771.5,3.66636493]
[1753878778245,0.2473045,3771.6,3771.5,3.66636493]
[1753878778571,4.6013045,3771.6,3771.5,3.69287957]
[1753878778773,4.6013045,3771.6,3771.5,3.82980773]
[1753878778978,5.5488045,3771.6,3771.4,0.001]
[1753878779145,1.1948045,3771.5,3771.4,0.001]
[1753878779347,0.2473045,3771.5,3771.4,0.001]
[1753878779673,0.24716648,3771.5,3771.4,0.001]
[1753878779869,0.24716648,3771.5,3771.3,2.30739605]
[1753878780060,0.24716648,3771.4,3771.2,2.04755506]
[1753878780263,1.19466648,3771.3,3771.1,0.04]
[1753878780574,4.60116648,3771.2,3771.1,0.04]
[1753878780781,5.61993313,3771.2,3771.1,0.04]
[1753878781078,6.11673313,3771.2,3771.1,0.04]
[1753878781235,5.56186648,3771.2,3771.1,0.04]
[1753878781439,5.56186648,3771.2,3770.3,0.32487489]
[1753878781773,0.24716648,3771.1,3770.4,0.02652238]
[1753878781951,0.24716648,3771.0,3770.6,2.65209151]
[1753878782145,0.24716648,3770.9,3770.7,2.65201814]
[1753878782353,4.60016648,3770.8,3770.7,2.65201814]
[1753878782741,0.24716648,3770.8,3770.7,2.65201814]
[1753878783081,4.60016648,3770.8,3770.7,3.10881814]
[1753878783400,4.60016648,3770.8,3770.7,3.71702636]
[1753878783559,0.24716648,3770.8,3770.7,3.26023569]
[1753878784238,0.24716648,3770.8,3770.2,5.20010094]
[1753878784239,0.71106648,3770.8,3770.6,2.65208086]
[1753878784440,0.24716648,3770.7,3770.6,2.65208086]
[1753878785938,1.20786648,3770.7,3770.2,0.32660588]
[1753878786287,1.20786648,3770.6,3770.1,0.04]
[1753878786587,4.59916648,3770.5,3770.2,2.65236215]
[1753878786755,4.59916648,3770.5,3770.1,0.04]
[1753878786756,0.823,3770.3,3770.1,0.04]
[1753878786954,0.24716648,3770.2,3770.1,0.04]
[1753878787155,1.20786648,3770.2,3770.1,0.04]
[1753878788060,1.20786648,3770.2,3769.2,0.55]
[1753878788247,0.24716648,3770.1,3769.9,2.6525199]
[1753878788442,4.59829096,3770.0,3769.9,2.91781713]
[1753878789272,0.24629096,3770.0,3769.9,2.65256514]
[1753878789579,4.59829096,3770.0,3769.9,2.65256514]
[1753878789780,0.24629096,3770.0,3769.9,3.65936514]
[1753878789992,0.24629096,3770.0,3769.9,3.98046514]
[1753878790176,0.24629096,3770.0,3769.9,3.20256514]
[1753878790759,0.24629096,3770.0,3769.9,3.78808903]
[1753878790960,0.24629096,3770.0,3769.9,4.24488903]
[1753878791163,0.24629096,3770.0,3769.9,4.27141493]
[1753878791400,2.65137116,3771.7,3769.9,4.27141493]
[1753878791401,0.7866,3771.3,3771.2,2.65167585]
[1753878791703,0.04,3771.9,3771.8,2.65125404]
[1753878792014,0.04,3771.9,3771.8,2.67776658]
[1753878792195,1.0007,3772.9,3771.8,2.67776658]
[1753878792196,0.04,3772.9,3771.8,4.31081071]
[1753878792362,0.04,3772.9,3772.8,2.65055131]
[1753878792996,0.04,3772.9,3772.8,3.13385682]
[1753878793314,0.04,3772.9,3772.8,3.10735131]
[1753878793457,0.04,3772.9,3772.8,4.23315192]
[1753878794595,0.04,3772.9,3772.8,3.77635192]
[1753878797529,0.04,3772.9,3772.8,3.20055131]
[1753878801371,0.04,3772.9,3772.4,0.1]
[1753878801372,1.0007,3772.9,3772.4,0.1]
[1753878801568,0.9607,3772.8,3772.4,0.1]
[1753878802118,0.9607,3772.8,3772.7,2.65062157]
[1753878802498,0.4968,3772.8,3772.7,2.65062157]
[1753878802705,0.04,3772.9,3772.7,2.65062157]
[1753878802908,0.04,3772.9,3772.8,2.65055131]
[1753878803131,0.04,3772.9,3772.4,0.1]
[1753878803132,0.9607,3772.8,3772.4,0.1]
[1753878803416,0.9607,3772.7,3772.4,0.1]
[1753878803792,0.9607,3772.6,3772.4,0.1]
[1753878804264,0.9607,3772.5,3772.4,0.1]
[1753878804918,1.73,3772.5,3772.4,0.1]
[1753878805122,5.2533325,3772.5,3772.4,0.1]
[1753878805636,2.60257041,3772.5,3772.4,0.1]
[1753878805773,0.4968,3772.8,3772.4,0.1]
[1753878805973,4.344,3772.7,3772.5,3.22724509]
[1753878806173,4.344,3772.7,3772.6,3.53341634]
[1753878806416,4.344,3772.7,3772.6,3.20069183]
[1753878806584,0.04,3772.9,3772.6,3.20069183]
[1753878806585,0.04,3772.9,3772.8,3.20055131]
[1753878807203,0.04,3772.9,3772.4,0.1]
[1753878807204,1.0007,3772.9,3772.4,0.1]
[1753878807392,0.9607,3772.8,3772.7,2.65061227]
[1753878807590,0.04,3772.9,3772.8,2.65055131]
[1753878808717,0.04,3772.9,3772.8,3.20055131]
[1753878808887,0.04,3772.9,3772.8,0.55]
[1753878809087,0.04,3772.9,3772.8,3.20055131]
[1753878809403,0.04,3772.9,3772.8,2.65055131]
[1753878810806,0.04,3772.9,3772.8,4.0021249]
[1753878811207,1e-08,3772.9,3772.8,11.69173041]
[1753878811435,0.001,3773.8,3773.7,3.19991917]
[1753878811750,0.24733837,3773.8,3773.7,3.19991917]
[1753878811933,0.001,3773.8,3773.7,3.19991917]
[1753878812840,0.001,3773.8,3773.7,4.21911136]
[1753878813009,0.001,3773.8,3773.7,3.19991917]
[1753878813562,0.001,3773.8,3773.7,4.00331917]
[1753878813847,0.001,3773.8,3773.7,7.00331917]
[1753878814925,0.001,3774.2,3774.1,3.19963832]
[1753878815110,0.001,3774.2,3774.1,4.08457446]
[1753878815310,1e-08,3774.2,3774.1,4.88797446]
[1753878815538,1e-08,3774.2,3774.1,4.91447084]
[1753878815814,1e-08,3774.2,3774.1,4.56687446]
[1753878816238,1e-08,3774.2,3774.1,4.08457446]
[1753878816473,1e-08,3774.2,3774.1,8.42457446]
[1753878816841,1e-08,3774.2,3774.1,7.08457446]
[1753878817443,1e-08,3774.2,3774.1,6.19963832]
[1753878817678,0.94240001,3774.2,3772.7,0.4823]
[1753878817985,1.7435,3774.1,3773.7,2.6498609]
[1753878818303,0.9424,3774.0,3773.9,2.64977874]
[1753878818441,1e-08,3774.2,3774.0,2.64968443]
[1753878818633,1e-08,3774.2,3773.8,2.64980141]
[1753878818847,0.9424,3774.1,3773.7,2.64989349]
[1753878819175,0.9424,3774.0,3773.7,2.64990587]
[1753878819376,0.9424,3773.9,3773.7,2.64990587]
[1753878819574,0.9424,3773.9,3773.8,2.64984895]
[1753878820278,1e-08,3774.2,3774.1,2.64963832]
[1753878820572,0.24699955,3774.2,3774.1,3.2261347]
[1753878820772,1e-08,3774.2,3774.1,3.19963832]
[1753878821590,1e-08,3774.2,3774.1,11.52619973]
[1753878821901,1e-08,3774.2,3774.1,13.75159373]
[1753878822198,1e-08,3774.2,3774.1,13.43049373]
[1753878822805,1e-08,3774.2,3774.1,13.24333232]
[1753878822961,1e-08,3774.2,3774.1,12.92223232]
[1753878823464,1e-08,3774.2,3774.1,8.10393232]
[1753878823670,1e-08,3774.2,3774.1,10.53563832]
[1753878825230,1e-08,3774.2,3774.1,6.19963832]
[1753878825435,0.94240001,3774.2,3774.1,10.53463832]
[1753878825563,1e-08,3774.2,3774.1,10.53463832]
[1753878826700,1e-08,3774.2,3774.1,0.55]
[1753878826701,0.94240001,3774.2,3774.1,0.55]
[1753878826864,1.14155062,3774.2,3772.8,3.58024201]
[1753878827060,0.9424,3774.1,3773.0,3.0]
[1753878827278,0.9424,3774.1,3773.9,2.64974474]
[1753878827510,1e-08,3774.2,3773.5,4.334]
[1753878827658,1e-08,3774.2,3773.5,6.98399355]
[1753878827866,1e-08,3774.2,3774.1,2.64963832]
[1753878828196,1e-08,3774.2,3774.1,3.72957424]
[1753878828398,0.94240001,3774.2,3774.0,2.64970853]
[1753878828597,1e-08,3774.2,3774.1,2.64963832]
[1753878828779,0.9424,3774.1,3773.9,6.98275807]
[1753878828977,0.9424,3774.0,3773.9,2.64975998]
[1753878829266,1.18952044,3774.0,3773.9,2.64975998]
[1753878829584,0.9424,3774.0,3773.9,2.64975998]
[1753878829907,0.9424,3774.0,3773.6,3.55]
[1753878830085,0.79240001,3774.2,3773.9,2.64977874]
[1753878830485,0.79240001,3774.2,3773.8,2.64984285]
[1753878830682,0.9424,3774.1,3773.9,2.64976464]
[1753878830891,0.9424,3774.0,3773.5,4.333]
[1753878831105,0.9424,3773.9,3773.8,2.64984626]
[1753878831789,1.73480001,3774.2,3774.0,2.64969486]
[1753878831998,0.79240001,3774.2,3774.0,2.64969486]
[1753878832198,0.9424,3774.1,3773.6,0.55]
[1753878832401,1e-08,3774.2,3774.1,2.64963832]
[1753878832799,1e-08,3774.2,3774.1,2.6761347]
[1753878833000,1e-08,3774.2,3774.1,3.2261347]
[1753878833238,1e-08,3774.2,3774.1,4.24691902]
[1753878833434,1e-08,3774.2,3774.1,4.22042264]
[1753878834284,0.94240001,3774.2,3774.1,4.22042264]
[1753878834485,1e-08,3774.2,3774.1,4.22042264]
[1753878834895,0.24728003,3774.2,3774.1,4.22042264]
[1753878835126,1.18968003,3774.2,3774.1,2.64963832]
[1753878835898,1.76160001,3774.2,3774.0,2.64968129]
[1753878836145,1e-08,3774.2,3774.1,2.64963832]
[1753878836446,0.24741578,3774.2,3774.1,2.64963832]
[1753878837714,0.24741578,3774.2,3774.1,3.19963832]
[1753878838040,1e-08,3774.2,3774.1,6.81116696]
[1753878838201,1e-08,3774.2,3774.1,7.26697058]
[1753878839245,1e-08,3774.2,3774.1,7.58807058]
[1753878839538,1e-08,3774.6,3774.5,3.19935753]
[1753878839844,0.002,3775.1,3774.7,0.55]
[1753878840028,0.14867406,3775.4,3775.3,9.77903813]
[1753878840231,0.002,3775.5,3775.4,6.19872596]
[1753878840432,0.24992609,3775.5,3775.4,6.19872596]
[1753878840842,0.24992609,3775.5,3775.4,10.52672596]
[1753878842270,0.002,3775.5,3775.4,10.52672596]
[1753878842411,0.002,3775.5,3775.4,12.15594181]
[1753878843141,0.002,3775.5,3775.4,12.62364181]
[1753878843339,0.002,3775.5,3775.4,7.82794181]
[1753878843546,0.002,3775.5,3775.4,12.15494181]
[1753878843749,0.002,3775.5,3775.4,7.82794181]
[1753878844043,0.9209,3775.5,3775.4,2.64872596]
[1753878844236,0.002,3775.5,3775.4,2.64872596]
[1753878844562,0.002,3775.5,3775.4,7.55121321]
[1753878844856,0.002,3775.5,3775.4,9.07559539]
[1753878845216,0.002,3775.5,3775.4,12.54329539]
[1753878845415,0.002,3775.5,3775.4,12.07559539]
[1753878846489,0.002,3775.5,3775.4,12.86439539]
[1753878846953,0.002,3775.5,3775.4,7.74959539]
[1753878847158,0.002,3775.5,3775.4,12.07459539]
[1753878847321,0.002,3775.5,3775.4,12.54229539]
[1753878847649,0.002,3775.5,3775.4,12.86339539]
[1753878847853,0.04,3775.9,3775.8,2.64844536]
[1753878848026,0.04,3775.9,3775.8,8.05214281]
[1753878848228,0.04,3775.9,3775.8,8.51984281]
[1753878848555,0.04,3775.9,3775.8,11.51984281]
[1753878848759,1.2394,3777.1,3776.7,0.55]
[1753878848939,0.24910689,3777.0,3776.7,3.19781422]
[1753878849255,0.002,3777.0,3776.7,8.6357473]
[1753878849412,0.002,3777.0,3776.7,8.60926916]
[1753878849853,0.002,3777.0,3776.7,11.60926916]
[1753878851164,0.002,3777.0,3776.7,12.07696916]
[1753878851549,0.002,3777.0,3776.8,6.19774412]
[1753878851749,1e-08,3776.9,3776.8,7.87314104]
[1753878851956,1e-08,3776.9,3776.8,8.19424104]
[1753878852551,1e-08,3776.9,3776.8,7.40544104]
[1753878852980,1e-08,3776.9,3776.8,11.72644104]
[1753878853578,1e-08,3776.9,3776.8,12.19414104]
[1753878853864,1e-08,3776.9,3776.8,12.51524104]
[1753878854643,0.002,3777.0,3776.8,12.51524104]
[1753878854644,1e-08,3777.0,3776.9,6.19767401]
[1753878854833,1e-08,3777.2,3777.1,3.19753382]
[1753878855175,6.365,3778.7,3777.8,3.19704325]
[1753878855467,0.9189,3778.7,3777.8,15.35796171]
[1753878855670,0.9189,3778.7,3777.8,17.6288178]
[1753878856262,1e-08,3777.9,3777.8,17.6288178]
[1753878856570,1e-08,3777.9,3777.8,17.1601178]
[1753878856770,1e-08,3777.9,3777.8,17.6278178]
[1753878857559,0.04,3778.9,3778.7,0.55]
[1753878857731,0.4607,3779.8,3779.7,3.19571262]
[1753878857935,0.9189,3779.8,3779.7,7.51371262]
[1753878858136,0.4602,3780.1,3779.8,3.19564262]
[1753878858336,0.4602,3780.1,3779.8,6.19564262]
[1753878858537,0.002,3780.1,3779.8,6.19564262]
[1753878859173,0.9589,3779.9,3779.8,6.19564262]
[1753878860158,0.9589,3779.9,3779.8,10.51164262]
[1753878860564,0.9589,3779.9,3779.8,4.866]
[1753878860877,1.7805,3779.9,3779.7,4.316]
[1753878861062,0.04,3779.9,3779.8,0.55]
[1753878861263,0.04,3779.9,3779.8,3.19564262]
[1753878861784,0.9589,3779.9,3779.8,7.51164262]
[1753878862281,0.9589,3779.9,3779.8,4.866]
[1753878862486,0.9589,3779.9,3779.8,7.51164262]
[1753878862975,0.04,3779.9,3779.8,7.83357027]
[1753878863952,0.9589,3779.9,3779.4,2.64585278]
[1753878864280,0.9589,3779.9,3779.7,2.64571262]
[1753878864281,0.9189,3779.8,3779.7,2.64571262]
[1753878864478,0.9189,3779.8,3779.7,4.313]
[1753878864776,0.8261,3779.7,3779.6,4.313]
[1753878864977,1.745,3779.7,3779.6,4.313]
[1753878865181,1.745,3779.7,3779.6,6.95878262]
[1753878865407,0.04,3779.9,3779.8,2.64564262]
[1753878865587,0.9589,3779.9,3779.8,6.95864262]
[1753878865788,0.9589,3779.9,3779.8,4.313]
[1753878866701,0.9589,3779.9,3777.9,2.64692372]
[1753878866905,3.39927502,3779.7,3777.9,2.64692372]
[1753878867110,0.9189,3779.6,3778.8,2.6462881]
[1753878867267,0.9189,3779.5,3779.0,2.6461788]
[1753878867470,0.9189,3779.4,3779.1,2.64608975]
[1753878867671,0.7535,3779.7,3779.0,4.311]
[1753878867672,0.4607,3779.6,3779.0,4.311]
[1753878867885,0.4607,3779.6,3779.2,2.64601704]
[1753878867886,0.9189,3779.6,3779.2,2.64601704]
[1753878868134,0.7535,3779.7,3779.2,2.64601704]
[1753878868417,0.9189,3779.5,3779.2,2.64601704]
[1753878868571,0.9189,3779.5,3779.0,6.95716137]
[1753878868572,0.7535,3779.7,3779.3,2.64598057]
[1753878868767,0.8283,3779.2,3777.8,0.4677]
[1753878869022,0.9189,3779.1,3779.0,2.64620269]
[1753878869178,0.9189,3779.1,3778.9,2.64625238]
[1753878869381,0.8283,3779.2,3778.9,2.64625238]
[1753878869587,0.9189,3779.0,3778.9,2.64625238]
[1753878870608,0.8283,3779.2,3779.1,2.64613267]
[1753878870774,0.4545,3779.7,3779.4,3.19592263]
[1753878871114,0.4545,3779.7,3779.6,2.64578262]
[1753878871297,0.854,3779.9,3779.8,3.19564262]
[1753878871504,0.04,3779.9,3779.8,3.19564262]
[1753878871809,0.04,3779.9,3779.8,4.21068514]
[1753878872513,0.4945,3779.9,3779.5,2.64582208]
[1753878872715,0.814,3779.8,3779.0,0.55]
[1753878872923,0.4545,3779.7,3778.9,3.0]
[1753878873216,0.925,3779.7,3779.2,2.64599387]
[1753878873380,0.925,3779.6,3779.1,4.309]
[1753878873585,0.814,3779.8,3779.7,2.64571262]
[1753878876621,0.814,3779.8,3779.5,4.307]
[1753878876921,0.823,3779.5,3777.4,6.363]
[1753878877122,0.823,3779.3,3778.7,2.64639491]
[1753878877327,0.823,3779.3,3778.4,4.306]
[1753878877485,0.823,3779.3,3779.2,2.64606265]
[1753878877687,0.823,3779.3,3778.8,4.306]
[1753878878110,0.823,3779.3,3778.8,6.95229598]
[1753878878487,0.823,3779.3,3778.7,2.64639534]
[1753878878797,1.00805807,3779.2,3778.0,0.70443718]
[1753878878996,0.24636088,3779.1,3778.0,0.70443718]
[1753878879196,0.7617,3778.9,3778.3,2.64663332]
[1753878879522,0.24662311,3778.8,3778.3,2.64663332]
[1753878879722,0.7996,3778.6,3777.5,2.64725347]
[1753878879885,0.7996,3778.6,3777.1,0.04]
[1753878880084,0.7996,3778.2,3777.1,0.04]
[1753878880311,2.64648581,3778.6,3777.1,0.04]
[1753878880511,2.64688517,3778.1,3777.3,2.64736905]
[1753878880724,1.04574369,3778.0,3777.3,2.64736905]
[1753878880925,0.7989,3778.0,3777.4,2.64731212]
[1753878881297,0.7989,3778.0,3777.1,0.04]
[1753878881499,0.7989,3778.0,3777.3,2.64734385]
[1753878881826,3.44580545,3778.0,3777.3,2.64734385]
[1753878882022,3.44580545,3778.0,3777.2,2.64744358]
[1753878882434,0.7989,3778.0,3777.2,1.51400405]
[1753878882627,0.7989,3778.0,3777.9,2.64697318]
[1753878883593,2.64634455,3778.8,3777.8,0.55]
[1753878883594,0.7821,3778.8,3777.8,0.55]
[1753878883802,0.14817496,3778.7,3777.9,2.64693511]
[1753878884003,0.7821,3778.8,3778.1,2.64678266]
[1753878884292,0.7821,3778.8,3778.1,2.64683306]
[1753878884505,0.7821,3778.8,3778.3,2.64663697]
[1753878884706,0.7821,3778.8,3778.0,2.64690312]
[1753878884909,0.7821,3778.8,3778.2,2.64673945]
[1753878885239,0.7821,3778.8,3777.9,0.31969351]
[1753878885438,0.7821,3778.8,3778.0,2.64688916]
[1753878885637,0.7821,3778.8,3777.9,2.64696326]
[1753878885802,0.7821,3778.8,3778.2,2.64671458]
[1753878886423,0.7821,3778.8,3778.3,2.64666127]
[1753878886621,0.7821,3778.8,3778.6,2.6464298]
[1753878886934,0.7821,3778.8,3778.7,2.64641278]
[1753878887333,0.7821,3778.8,3778.6,2.64646628]
[1753878887534,0.7821,3778.8,3778.7,2.64641278]
[1753878889742,0.8329,3779.7,3779.2,2.64605031]
[1753878890037,4.45016205,3779.6,3778.6,2.64647385]
[1753878890204,4.302,3779.6,3778.9,2.64626449]
[1753878890397,0.8329,3779.5,3778.8,2.64629241]
[1753878890597,2.64589081,3779.5,3777.7,3.001]
[1753878890824,0.8234,3779.4,3778.1,3.55]
[1753878891025,0.76731808,3779.5,3778.0,6.9478806]
[1753878891026,0.8234,3779.0,3778.0,6.9478806]
[1753878891241,3.76731808,3779.5,3777.7,0.001]
[1753878891242,0.8234,3778.9,3777.7,0.001]
[1753878891565,0.8234,3778.7,3777.7,0.001]
[1753878891741,3.46983931,3778.7,3777.9,2.64692533]
[1753878891942,3.46982643,3778.7,3777.8,2.64701554]
[1753878892112,3.40299276,3778.6,3777.7,0.001]
[1753878892312,0.7565,3778.5,3777.7,0.001]
[1753878892525,2.64669724,3778.3,3777.7,0.001]
[1753878892726,0.7629,3778.2,3777.7,0.001]
[1753878892902,0.7629,3778.0,3777.7,0.001]
[1753878893102,3.4098298,3778.0,3777.7,0.001]
[1753878893299,2.64702195,3777.9,3777.7,0.001]
[1753878893535,0.3409593,3778.1,3777.7,0.001]
[1753878893536,0.8057,3777.8,3777.7,0.001]
[1753878894928,0.8057,3777.8,3777.7,2.64811332]
[1753878895127,0.8057,3777.8,3777.7,0.001]
[1753878895543,0.8057,3777.8,3777.7,2.64811332]
[1753878895849,0.8057,3777.8,3777.7,0.001]
[1753878897422,0.8057,3777.8,3777.7,2.64811332]
[1753878897731,0.8241,3778.4,3777.9,2.64693862]
[1753878897931,0.8241,3778.4,3777.7,0.001]
[1753878898230,0.8241,3778.4,3777.8,2.64704062]
[1753878898432,0.8241,3778.4,3778.3,2.64669295]
[1753878898758,0.8241,3778.4,3777.7,0.02747113]
[1753878898759,0.8241,3778.4,3777.7,0.001]
[1753878898934,0.8241,3778.4,3778.3,2.64669295]
[1753878899252,0.8024,3778.6,3778.2,2.64674496]
[1753878899466,0.8024,3778.6,3777.7,0.551]
[1753878899674,0.8024,3778.6,3777.9,2.64696131]
[1753878899870,1.84180955,3778.6,3777.7,0.001]
[1753878900017,0.8024,3778.6,3777.7,0.001]
[1753878900220,0.8024,3778.6,3778.4,2.64658674]
[1753878900515,0.76731808,3779.5,3777.7,0.001]
[1753878900516,2.64688614,3778.1,3777.7,0.001]
[1753878900733,0.7938,3777.9,3777.7,0.001]
[1753878902721,2.64704325,3777.8,3777.7,0.001]
[1753878902950,3.43244325,3777.8,3777.7,0.001]
[1753878903149,0.7854,3777.8,3777.7,0.001]
[1753878903400,3.43244325,3777.8,3777.7,0.001]
[1753878903579,4.4700731,3777.8,3777.7,0.001]
[1753878903761,1.82302985,3777.8,3777.7,0.001]
[1753878903960,0.7854,3777.8,3777.7,0.001]
[1753878904363,3.43244325,3777.8,3777.7,0.001]
[1753878904698,6.43244325,3777.8,3777.7,0.001]
[1753878906094,7.72744325,3777.8,3777.7,0.001]
[1753878906468,3.43244325,3777.8,3777.7,0.001]
[1753878906679,8.33537794,3777.8,3777.7,0.001]
[1753878907090,0.7854,3777.8,3777.7,0.001]
[1753878907281,5.0804,3777.8,3777.7,0.001]
[1753878908168,4.295,3778.0,3777.8,2.64704325]
[1753878908397,0.8202,3778.8,3778.3,2.6466321]
[1753878908593,4.295,3778.5,3778.1,2.64680692]
[1753878908815,4.295,3778.5,3777.7,2.67453696]
[1753878908993,0.8202,3778.8,3777.9,0.55]
[1753878909175,5.1142,3778.8,3778.6,2.64648249]
[1753878909653,4.294,3778.8,3778.7,2.64641278]
[1753878909855,4.294,3778.8,3778.5,2.64654352]
[1753878910299,4.294,3778.8,3778.5,2.64654091]
[1753878910803,4.294,3778.8,3777.7,0.001]
[1753878911019,3.43795553,3778.5,3777.8,2.64704325]
[1753878911298,6.93964969,3778.4,3777.7,2.64806497]
[1753878911729,4.293,3778.4,3777.7,0.001]
[1753878911859,4.293,3778.4,3778.0,2.64685557]
[1753878912210,4.293,3778.4,3777.7,0.001]
[1753878912389,3.15517817,3778.3,3777.7,0.001]
[1753878912576,3.15515802,3778.3,3777.7,0.001]
[1753878912772,4.293,3778.4,3777.8,2.64698103]
[1753878912972,4.293,3778.4,3777.7,0.001]
[1753878913278,4.293,3778.4,3778.0,2.64685621]
[1753878913672,4.293,3778.4,3778.1,2.64682998]
[1753878913871,4.293,3778.4,3777.8,2.64698134]
[1753878914068,4.293,3778.4,3777.7,0.001]
[1753878914272,0.7931,3778.3,3777.7,0.001]
[1753878914697,2.64684682,3778.1,3777.7,0.001]
[1753878914874,6.9389322,3778.0,3777.7,0.001]
[1753878915214,2.64704325,3777.8,3777.7,0.001]
[1753878917666,0.829,3777.9,3777.7,0.001]
[1753878918216,3.47602008,3777.9,3777.7,0.001]